bitfinex-derivatives/quotes_SOLF0:USTF0_20241218
["timestamp","ask_amount","ask_price","bid_price","bid_amount"]
[1734498001510,2.3009,217.3,217.25,2.54]
[1734498001806,2.3009,217.3,217.24,8.04008771]
[1734498002007,2.3009,217.3,217.24,10.58008771]
[1734498002507,5.73868771,217.3,217.16,0.1807]
[1734498002713,5.73868771,217.28,217.21,5.73868771]
[1734498002904,5.73868771,217.22,217.17,2.54]
[1734498003104,2.3021,217.19,217.17,2.54]
[1734498003508,2.302,217.19,217.13,2.54]
[1734498003705,5.73868771,217.18,217.13,2.54]
[1734498004207,2.3021,217.19,217.13,8.27868771]
[1734498004404,13.61814317,217.25,217.15,158.47699771]
[1734498004604,2.3017,217.22,217.17,5.73868771]
[1734498004802,5.73868771,217.22,217.18,2.54]
[1734498005003,5.73868771,217.2,217.15,152.73831]
[1734498005306,13.61466195,217.25,217.15,152.73831]
[1734498005506,5.73868771,217.24,217.17,5.73868771]
[1734498006210,2.3016,217.23,217.17,5.73868771]
[1734498006505,5.73868771,217.2,217.15,152.73831]
[1734498006705,5.73868771,217.22,217.15,152.73831]
[1734498007110,2.302,217.2,217.15,152.73831]
[1734498007309,5.73868771,217.22,217.16,5.73868771]
[1734498007526,6.94706593,217.25,217.18,5.73868771]
[1734498007806,6.94706593,217.25,217.15,152.73831]
[1734498008108,1.5667,217.26,217.19,5.73868771]
[1734498008310,1.5667,217.26,217.2,2.54]
[1734498008501,2.3014,217.25,217.2,2.54]
[1734498010106,1.5576,217.29,217.21,5.73868771]
[1734498010303,8.03948771,217.3,217.23,5.73868771]
[1734498010503,2.3008,217.3,217.23,5.73868771]
[1734498010910,2.3009,217.29,217.23,5.73868771]
[1734498011105,8.38518989,217.33,217.23,5.73868771]
[1734498011315,7.17628771,217.33,217.26,5.73868771]
[1734498011608,7.17628771,217.33,217.26,8.27868771]
[1734498012411,2.3007,217.31,217.26,8.27868771]
[1734498012605,5.73868771,217.31,217.26,2.54]
[1734498012812,5.73868771,217.29,217.26,2.54]
[1734498013319,15.04063806,217.33,217.26,2.54]
[1734498013320,1.4376,217.33,217.26,2.54]
[1734498013712,5.73868771,217.32,217.26,8.27868771]
[1734498013910,1.4376,217.33,217.26,2.54]
[1734498014213,6.9398452,217.34,217.26,2.54]
[1734498014617,3.0655,217.35,217.26,2.54]
[1734498014917,3.0655,217.35,217.27,8.95035974]
[1734498014918,1.5712,217.35,217.27,8.95035974]
[1734498015214,1.561,217.38,217.28,8.95035974]
[1734498015415,1.561,217.38,217.26,4.8411]
[1734498015611,25.17459826,217.38,217.26,2.54]
[1734498015816,2.3005,217.34,217.27,2.3011]
[1734498016014,6.93449519,217.37,217.26,11.49035974]
[1734498016213,8.95035974,217.39,217.26,11.49035974]
[1734498016513,16.68237313,217.42,217.29,8.95035974]
[1734498016717,6.65545584,217.41,217.29,8.95035974]
[1734498017014,8.95035974,217.45,217.29,8.95035974]
[1734498017215,2.2997,217.41,217.33,2.3004]
[1734498017413,2.2997,217.41,217.34,2.54]
[1734498017616,2.2997,217.41,217.35,2.54]
[1734498018315,1.5031,217.43,217.35,11.49035974]
[1734498018510,2.2993,217.45,217.38,2.2999]
[1734498018714,1.4987,217.46,217.35,11.49035974]
[1734498019017,22.94591437,217.48,217.35,11.49035974]
[1734498019216,160.5385826,217.49,217.35,11.49035974]
[1734498019518,6.93241775,217.48,217.38,8.95035974]
[1734498019908,6.93241775,217.48,217.41,2.2996]
[1734498019909,9.23141775,217.48,217.41,2.2996]
[1734498020109,9.23141775,217.48,217.41,4.8396]
[1734498020314,1.4912,217.49,217.41,4.8396]
[1734498020315,8.42361775,217.49,217.41,2.54]
[1734498020513,1.4912,217.49,217.41,2.54]
[1734498021210,2.299,217.47,217.41,2.54]
[1734498021910,1.4912,217.49,217.41,2.54]
[1734498021911,2.2991,217.46,217.41,2.54]
[1734498022114,1.4912,217.49,217.41,2.54]
[1734498022710,2.2993,217.45,217.41,2.54]
[1734498022910,1.4912,217.49,217.41,2.54]
[1734498023114,2.2994,217.43,217.41,2.54]
[1734498023417,8.95035974,217.48,217.36,5.43045137]
[1734498023614,8.95035974,217.48,217.39,2.54]
[1734498023815,2.2993,217.44,217.39,2.54]
[1734498024717,2.2994,217.43,217.39,2.54]
[1734498025417,8.95035974,217.48,217.39,2.54]
[1734498025418,2.2993,217.44,217.39,2.54]
[1734498025714,8.95035974,217.48,217.39,2.54]
[1734498025913,22.50450899,217.48,217.39,2.54]
[1734498026115,8.95035974,217.48,217.39,2.54]
[1734498026424,1.4912,217.49,217.39,11.49035974]
[1734498027318,1.4912,217.49,217.41,2.2996]
[1734498028513,2.2989,217.48,217.41,2.2996]
[1734498029119,1.4912,217.49,217.41,2.2996]
[1734498029314,1.5415,217.52,217.39,11.49035974]
[1734498029315,295.30952682,217.65,217.45,8.95035974]
[1734498029512,1.5272,217.59,217.46,2.54]
[1734498029711,1.5272,217.59,217.51,8.95035974]
[1734498029915,1.5272,217.59,217.52,2.54]
[1734498030115,2.2981,217.56,217.52,2.54]
[1734498030312,1.5272,217.59,217.52,2.54]
[1734498030516,2.2982,217.55,217.52,2.54]
[1734498030710,1.5272,217.59,217.45,8.95035974]
[1734498030917,8.95035974,217.58,217.46,2.54]
[1734498031312,8.95035974,217.58,217.42,8.95035974]
[1734498031614,8.95035974,217.55,217.43,2.54]
[1734498032313,2.299,217.47,217.43,2.54]
[1734498033017,2.2989,217.49,217.43,2.54]
[1734498033414,1.5561,217.51,217.43,2.54]
[1734498033616,4.5643,217.51,217.43,2.54]
[1734498033817,2.2988,217.49,217.4,2.2997]
[1734498034018,4.5643,217.51,217.41,2.54]
[1734498034611,2.2992,217.45,217.41,2.54]
[1734498035419,7.1043,217.51,217.41,2.54]
[1734498035718,8.95035974,217.49,217.38,2.54]
[1734498035920,8.95035974,217.49,217.33,8.95035974]
[1734498036220,8.95035974,217.46,217.3,10.38825974]
[1734498036515,11.49035974,217.46,217.33,8.95035974]
[1734498037019,11.49035974,217.46,217.34,2.3004]
[1734498037522,2.2997,217.41,217.34,2.3004]
[1734498039621,2.2992,217.46,217.38,2.2999]
[1734498039926,163.4326649,217.51,217.38,4.8399]
[1734498039927,2.54,217.5,217.38,4.8399]
[1734498040123,2.54,217.5,217.39,8.95035974]
[1734498040322,2.54,217.5,217.4,2.2997]
[1734498040323,2.2991,217.47,217.4,2.2997]
[1734498042321,190.64203789,217.56,217.38,2.54]
[1734498042322,190.64203789,217.59,217.45,8.95035974]
[1734498042531,190.64203789,217.59,217.36,8.95035974]
[1734498042532,167.81872464,217.61,217.48,8.95035974]
[1734498042830,167.81872464,217.61,217.49,2.54]
[1734498043425,167.81872464,217.61,217.49,4.8388]
[1734498043426,2.2981,217.56,217.49,4.8388]
[1734498044826,2.2979,217.58,217.5,2.2987]
[1734498045226,8.95035974,217.61,217.5,2.2987]
[1734498045423,2.2981,217.56,217.5,2.2987]
[1734498045931,2.298,217.57,217.49,2.54]
[1734498046129,28.48993873,217.6,217.49,2.54]
[1734498046434,5.57391223,217.6,217.49,2.54]
[1734498046933,2.2981,217.56,217.5,2.2987]
[1734498049334,2.2979,217.58,217.51,2.2986]
[1734498049735,2.2977,217.6,217.51,8.95035974]
[1734498050436,2.2977,217.6,217.54,2.2982]
[1734498050632,2.2978,217.59,217.55,2.54]
[1734498051629,1.4847,217.66,217.57,8.95035974]
[1734498053034,2.2974,217.62,217.57,2.2979]
[1734498053431,1.4847,217.66,217.55,2.54]
[1734498053738,2.2974,217.62,217.57,2.2979]
[1734498053929,1.4847,217.66,217.55,2.54]
[1734498055732,10.43505974,217.66,217.55,2.54]
[1734498056128,2.2974,217.63,217.54,11.24855974]
[1734498056334,10.43505974,217.66,217.55,2.54]
[1734498056636,10.43505974,217.66,217.51,8.95035974]
[1734498056828,2.2977,217.6,217.52,2.54]
[1734498057437,2.2977,217.6,217.55,2.2981]
[1734498057734,160.3530649,217.66,217.54,8.95035974]
[1734498057931,1.4847,217.66,217.54,8.95035974]
[1734498059544,1.4847,217.66,217.57,2.2979]
[1734498059738,1.4847,217.66,217.58,2.54]
[1734498060345,2.2972,217.64,217.58,4.8378]
[1734498062244,2.2973,217.63,217.58,4.8378]
[1734498062953,8.95035974,217.66,217.54,8.95035974]
[1734498063150,204.25698333,217.66,217.55,2.54]
[1734498063359,167.81872464,217.66,217.51,8.95035974]
[1734498063658,8.95035974,217.6,217.51,2.54]
[1734498063858,1.472,217.59,217.51,2.54]
[1734498064454,1.472,217.59,217.47,2.299]
[1734498064455,2.2984,217.53,217.47,2.299]
[1734498064752,2.2984,217.53,217.48,2.54]
[1734498065057,1.4346,217.58,217.49,2.2988]
[1734498065058,2.2983,217.55,217.49,2.2988]
[1734498065360,1.4346,217.58,217.48,2.54]
[1734498067152,1.4346,217.58,217.48,11.49035974]
[1734498067858,1.4346,217.58,217.5,2.2987]
[1734498068452,1.4346,217.58,217.48,8.95035974]
[1734498068655,1.4346,217.58,217.48,2.54]
[1734498068855,8.95035974,217.57,217.48,2.54]
[1734498069054,15.60632565,217.57,217.48,2.54]
[1734498069359,2.2987,217.5,217.48,2.54]
[1734498070250,2.2988,217.5,217.48,2.54]
[1734498070451,6.65596591,217.56,217.46,152.26561]
[1734498070651,8.95035974,217.57,217.46,152.26561]
[1734498070861,8.95035974,217.54,217.46,154.80561]
[1734498071754,2.2989,217.49,217.46,154.80561]
[1734498072158,2.299,217.48,217.46,154.80561]
[1734498072551,8.95035974,217.54,217.46,152.26561]
[1734498072760,2.299,217.47,217.46,152.26561]
[1734498073561,2.299,217.47,217.46,149.87991]
[1734498074871,1.5661,217.5,217.46,149.87991]
[1734498076161,1.5661,217.5,217.46,139.55221]
[1734498076957,2.299,217.47,217.46,139.55221]
[1734498077364,1.5661,217.5,217.46,139.55221]
[1734498078167,3.8649,217.5,217.46,139.55221]
[1734498078461,1.5661,217.5,217.46,139.55221]
[1734498078861,2.2989,217.48,217.46,139.55221]
[1734498079458,1.5661,217.5,217.46,139.55221]
[1734498079665,2.299,217.47,217.46,139.55221]
[1734498081058,2.299,217.47,217.46,132.39391]
[1734498082562,2.299,217.48,217.46,132.39391]
[1734498082868,8.95035974,217.57,217.46,132.39391]
[1734498083167,22.53530418,217.57,217.46,132.39391]
[1734498083368,5.42733547,217.56,217.46,132.39391]
[1734498083668,2.2983,217.55,217.46,132.39391]
[1734498083860,23.61710001,217.59,217.46,132.39391]
[1734498084061,2.2983,217.54,217.46,134.69301]
[1734498084264,23.62672937,217.59,217.46,134.69301]
[1734498084465,8.95035974,217.57,217.46,132.39391]
[1734498084663,2.2987,217.5,217.46,132.39391]
[1734498084865,2.2987,217.5,217.47,2.54]
[1734498085059,13.59591788,217.56,217.47,2.54]
[1734498085364,8.95035974,217.57,217.47,2.54]
[1734498085767,2.2983,217.54,217.47,4.839]
[1734498086162,2.2983,217.54,217.48,2.2989]
[1734498087167,2.2983,217.54,217.47,2.54]
[1734498087366,2.2984,217.53,217.47,2.54]
[1734498088259,2.2983,217.54,217.47,2.54]
[1734498088566,8.95035974,217.57,217.47,2.54]
[1734498088764,15.89273826,217.57,217.47,2.54]
[1734498088967,2.2989,217.49,217.46,132.39391]
[1734498089366,8.95035974,217.54,217.46,132.39391]
[1734498089868,8.95035974,217.51,217.46,132.39391]
[1734498090072,2.299,217.47,217.46,132.39391]
[1734498092764,8.95035974,217.51,217.46,132.39391]
[1734498093161,4.5391,217.53,217.46,132.39391]
[1734498093364,4.5391,217.53,217.47,2.54]
[1734498093365,23.64083263,217.53,217.47,2.54]
[1734498093566,158.8683649,217.56,217.47,2.54]
[1734498093766,6.94173201,217.55,217.47,2.54]
[1734498093965,13.60446405,217.56,217.47,2.54]
[1734498094164,2.2983,217.54,217.47,2.54]
[1734498094366,8.95035974,217.57,217.47,2.54]
[1734498094572,181.41710628,217.57,217.47,2.54]
[1734498094874,2.2985,217.52,217.47,2.54]
[1734498095470,8.95035974,217.54,217.47,2.54]
[1734498095971,204.37855574,217.54,217.47,2.54]
[1734498096166,8.95035974,217.54,217.47,2.54]
[1734498096367,15.60942252,217.54,217.47,2.54]
[1734498096573,2.2989,217.48,217.47,2.54]
[1734498096770,205.46938838,217.53,217.46,132.39391]
[1734498096972,172.46598755,217.52,217.46,132.39391]
[1734498097173,158.8683649,217.52,217.46,132.39391]
[1734498097575,181.87044824,217.52,217.46,132.39391]
[1734498097969,23.00208334,217.51,217.46,132.39391]
[1734498098176,158.8683649,217.52,217.46,132.39391]
[1734498098474,2.299,217.47,217.46,132.39391]
[1734498100882,191.12086032,217.47,217.46,132.39391]
[1734498101076,168.11181915,217.47,217.46,132.39391]
[1734498101477,174.7768303,217.47,217.46,132.39391]
[1734498101983,48.9587325,217.47,217.46,132.39391]
[1734498102475,25.94969133,217.47,217.46,132.39391]
[1734498102773,53.55397446,217.47,217.46,132.39391]
[1734498103679,212.9793067,217.47,217.46,132.39391]
[1734498103881,385.41319701,217.47,217.46,132.39391]
[1734498104176,385.41261665,217.47,217.46,132.39391]
[1734498104381,212.34072883,217.47,217.46,132.39391]
[1734498104582,161.72433224,217.47,217.46,132.39391]
[1734498104778,159.42533224,217.47,217.46,132.39391]
[1734498109083,2.2988,217.49,217.46,132.39391]
[1734498109783,13.64314175,217.52,217.46,132.39391]
[1734498109984,23.71099573,217.52,217.46,132.39391]
[1734498110285,159.50546446,217.54,217.46,132.39391]
[1734498110476,23.71305414,217.53,217.46,132.39391]
[1734498110681,2.2987,217.51,217.46,132.39391]
[1734498110883,6.96203223,217.51,217.46,132.39391]
[1734498111082,206.20363064,217.53,217.46,132.39391]
[1734498111277,23.71245179,217.52,217.46,132.39391]
[1734498111477,2.54,217.55,217.46,132.39391]
[1734498111478,2.2989,217.49,217.46,132.39391]
[1734498114587,13.65045994,217.52,217.46,132.39391]
[1734498114789,17.0385019,217.51,217.46,132.39391]
[1734498114984,159.48398679,217.54,217.46,132.39391]
[1734498115287,2.2988,217.5,217.46,132.39391]
[1734498115489,23.72264747,217.52,217.46,132.39391]
[1734498115785,9.26337667,217.51,217.46,132.39391]
[1734498115991,2.2986,217.51,217.46,132.39391]
[1734498116790,8.98435208,217.51,217.46,132.39391]
[1734498116992,2.2986,217.51,217.46,132.39391]
[1734498118382,2.2988,217.49,217.46,132.39391]
[1734498118887,2.2987,217.5,217.46,132.39391]
[1734498119088,23.72819157,217.5,217.46,132.39391]
[1734498119395,23.73170069,217.49,217.46,132.39391]
[1734498119594,13.65289636,217.48,217.46,132.39391]
[1734498119891,159.48398679,217.51,217.46,132.39391]
[1734498120092,2.299,217.47,217.46,132.39391]
[1734498120793,11.47035974,217.53,217.46,132.39391]
[1734498121094,2.2988,217.49,217.46,132.39391]
[1734498121293,11.47035974,217.53,217.46,132.39391]
[1734498121294,23.74439863,217.51,217.46,132.39391]
[1734498121494,159.48398679,217.54,217.46,132.39391]
[1734498121695,2.2987,217.5,217.46,132.39391]
[1734498122591,23.74104267,217.54,217.46,132.39391]
[1734498122592,23.74104267,217.53,217.46,132.39391]
[1734498122788,6.97001253,217.52,217.47,2.52]
[1734498122989,159.48398679,217.56,217.47,2.52]
[1734498123188,159.48398679,217.56,217.47,3.9648]
[1734498123189,23.7512298,217.55,217.47,3.9648]
[1734498123396,13.66606423,217.54,217.47,4.5206]
[1734498123588,159.48398679,217.56,217.48,2.52]
[1734498123789,23.75184808,217.55,217.48,2.52]
[1734498123999,159.48398679,217.57,217.48,2.52]
[1734498124294,23.75297281,217.56,217.48,2.52]
[1734498124491,6.97346287,217.56,217.48,11.47035974]
[1734498124696,190.64203789,217.6,217.48,11.47035974]
[1734498124697,23.74691232,217.57,217.48,11.47035974]
[1734498124897,159.48398679,217.58,217.48,11.47035974]
[1734498125095,206.26562516,217.57,217.48,11.47035974]
[1734498125288,206.26562516,217.57,217.49,2.52]
[1734498125289,36.69953743,217.56,217.49,2.52]
[1734498125494,159.48398679,217.57,217.49,2.52]
[1734498125694,23.74026075,217.56,217.49,2.52]
[1734498125888,2.2985,217.52,217.49,2.52]
[1734498126501,13.66218332,217.54,217.49,2.52]
[1734498126695,2.2986,217.51,217.49,2.52]
[1734498129098,2.2986,217.51,217.46,132.39391]
[1734498129099,23.03530578,217.53,217.46,132.39391]
[1734498129400,159.48398679,217.51,217.46,132.39391]
[1734498129703,2.299,217.47,217.46,132.39391]
[1734498130401,8.98960776,217.47,217.46,132.39391]
[1734498130704,49.07523597,217.47,217.46,132.39391]
[1734498131095,208.55922276,217.47,217.46,132.39391]
[1734498131895,26.04176116,217.47,217.46,132.39391]
[1734498132097,23.74276116,217.47,217.46,132.39391]
[1734498132501,159.48398679,217.53,217.46,132.39391]
[1734498132695,23.73428617,217.52,217.46,132.39391]
[1734498132897,23.73428617,217.51,217.46,132.39391]
[1734498133094,23.73428617,217.5,217.46,132.39391]
[1734498133402,2.2985,217.52,217.46,132.39391]
[1734498133601,23.73369162,217.53,217.46,132.39391]
[1734498133801,23.73369162,217.52,217.46,132.39391]
[1734498134102,13.65618878,217.51,217.46,132.39391]
[1734498134300,13.65618878,217.5,217.46,132.39391]
[1734498134496,9.26624959,217.49,217.46,132.39391]
[1734498134696,23.7293516,217.52,217.46,132.39391]
[1734498134897,46.73868385,217.51,217.46,132.39391]
[1734498135102,2.299,217.47,217.46,132.39391]
[1734498135805,26.0283516,217.47,217.46,132.39391]
[1734498136008,9.26644959,217.47,217.46,132.39391]
[1734498136204,2.299,217.47,217.46,132.39391]
[1734498136398,2.2989,217.48,217.46,132.39391]
[1734498136803,10.07485634,217.48,217.46,132.39391]
[1734498136999,159.48398679,217.53,217.46,132.39391]
[1734498137199,2.2988,217.49,217.46,132.39391]
[1734498137603,6.69140315,217.51,217.46,132.39391]
[1734498137604,23.74547266,217.51,217.46,132.39391]
[1734498137801,23.74547266,217.5,217.46,132.39391]
[1734498137998,13.66294095,217.49,217.46,132.39391]
[1734498138202,159.48398679,217.52,217.46,132.39391]
[1734498138398,183.23202666,217.51,217.46,132.39391]
[1734498138600,159.48398679,217.52,217.46,132.39391]
[1734498138910,23.74931768,217.51,217.46,132.39391]
[1734498139108,182.53924992,217.52,217.46,132.39391]
[1734498139407,13.66512927,217.51,217.46,132.39391]
[1734498139606,6.97273936,217.51,217.46,132.39391]
[1734498139813,6.97273936,217.52,217.46,132.39391]
[1734498140109,46.8246072,217.55,217.5,5.71645318]
[1734498140310,9.27290916,217.55,217.5,5.71645318]
[1734498140506,15.96866817,217.55,217.5,5.71645318]
[1734498140811,2.2982,217.55,217.5,5.71645318]
[1734498141709,9.27372499,217.55,217.5,5.71645318]
[1734498141908,2.2983,217.54,217.5,5.71645318]
[1734498142210,2.2983,217.54,217.49,2.52]
[1734498143616,2.2983,217.54,217.49,4.8188]
[1734498145519,2.2985,217.52,217.49,2.52]
[1734498147112,15.96071171,217.54,217.49,2.52]
[1734498147716,9.26945461,217.54,217.49,2.52]
[1734498148314,13.66608067,217.54,217.49,2.52]
[1734498148518,2.2984,217.53,217.49,2.52]
[1734498149723,27.65591042,217.56,217.49,11.45259034]
[1734498149924,159.48398679,217.58,217.49,11.45259034]
[1734498150119,183.25058508,217.57,217.5,2.2986]
[1734498150322,23.76659829,217.56,217.5,2.2986]
[1734498150520,2.2983,217.54,217.5,2.2986]
[1734498150823,2.2983,217.54,217.49,11.45259034]
[1734498150824,2.2983,217.54,217.49,4.8188]
[1734498151220,2.2982,217.55,217.5,2.2987]
[1734498152516,13.67131498,217.56,217.49,2.52]
[1734498152830,10.08793577,217.55,217.49,2.52]
[1734498153126,13.67131498,217.54,217.49,2.52]
[1734498153428,2.2985,217.53,217.49,2.52]
[1734498154328,13.67288954,217.53,217.49,2.52]
[1734498154530,2.2985,217.52,217.49,2.52]
[1734498154729,23.75917443,217.54,217.47,3.0593]
[1734498155027,13.67062027,217.53,217.47,2.52]
[1734498155325,159.48398679,217.56,217.47,4.819]
[1734498155326,182.52341713,217.56,217.47,4.819]
[1734498155524,23.75654507,217.55,217.47,4.819]
[1734498155724,23.75654507,217.54,217.47,4.819]
[1734498155925,2.2986,217.51,217.47,2.52]
[1734498156520,2.2985,217.52,217.47,4.819]
[1734498157927,2.2986,217.51,217.47,4.819]
[1734498158535,8.93259034,217.54,217.47,2.52]
[1734498158925,10.08690883,217.52,217.47,2.52]
[1734498159133,2.2989,217.49,217.47,2.52]
[1734498159331,2.2989,217.49,217.46,132.39391]
[1734498159332,46.79992979,217.53,217.46,132.39391]
[1734498159530,23.75875234,217.52,217.46,132.39391]
[1734498159731,23.75875234,217.51,217.46,132.39391]
[1734498160039,23.75875234,217.5,217.46,132.39391]
[1734498160332,13.66984882,217.49,217.46,132.39391]
[1734498160533,15.96884882,217.48,217.46,132.39391]
[1734498160732,218.29513255,217.53,217.46,132.39391]
[1734498160733,13.67089155,217.47,217.46,132.39391]
[1734498160929,6.69518184,217.47,217.46,132.39391]
[1734498161134,10.08796818,217.48,217.46,132.39391]
[1734498161435,6.97578858,217.47,217.46,132.39391]
[1734498161642,15.96867989,217.47,217.46,132.39391]
[1734498161826,2.299,217.47,217.46,132.39391]
[1734498162230,185.53682608,217.47,217.46,132.39391]
[1734498162432,49.08020038,217.47,217.46,132.39391]
[1734498163029,208.56418717,217.47,217.46,132.39391]
[1734498163429,49.08020038,217.47,217.46,132.39391]
[1734498164440,208.56418717,217.47,217.46,132.39391]
[1734498165643,76.69851749,217.47,217.46,132.39391]
[1734498165840,76.69851749,217.47,217.46,127.62251]
[1734498166335,236.22738675,217.47,217.46,127.62251]
[1734498166541,236.1960801,217.47,217.46,127.62251]
[1734498166741,9.27478858,217.47,217.46,127.62251]
[1734498167044,2.299,217.47,217.46,127.62251]
[1734498167247,9.27478858,217.47,217.46,127.62251]
[1734498167448,2.299,217.47,217.46,127.62251]
[1734498167741,10.07510895,217.48,217.46,133.34369601]
[1734498168452,10.07510895,217.48,217.46,135.86369601]
[1734498171046,10.07510895,217.48,217.46,130.14251]
[1734498171247,2.299,217.47,217.46,127.62251]
[1734498172436,10.07510895,217.48,217.46,127.62251]
[1734498172838,10.07510895,217.48,217.46,130.14251]
[1734498173239,15.79629496,217.48,217.46,130.14251]
[1734498173440,15.79629496,217.48,217.46,127.62251]
[1734498173746,10.07510895,217.48,217.46,127.62251]
[1734498175944,7.68890895,217.48,217.47,2.52]
[1734498176450,159.53442698,217.57,217.47,8.24118601]
[1734498176647,19.38136874,217.56,217.47,8.24118601]
[1734498176852,6.97002515,217.55,217.49,5.72118601]
[1734498177149,5.72118601,217.56,217.49,5.72118601]
[1734498177549,2.2982,217.55,217.5,2.2987]
[1734498177744,5.72118601,217.57,217.47,2.52]
[1734498177947,5.72118601,217.57,217.49,5.72118601]
[1734498178252,2.2983,217.54,217.49,5.72118601]
[1734498178652,6.96864141,217.56,217.49,5.72118601]
[1734498178852,5.72118601,217.57,217.49,5.72118601]
[1734498179452,2.2983,217.54,217.49,8.01998601]
[1734498179753,5.72118601,217.55,217.47,11.26448601]
[1734498180159,2.2985,217.52,217.47,11.26448601]
[1734498180354,5.72118601,217.53,217.47,5.5433]
[1734498180945,2.2986,217.51,217.47,5.5433]
[1734498181749,5.72118601,217.51,217.46,127.62251]
[1734498181951,5.72118601,217.47,217.46,127.62251]
[1734498182654,8.02018601,217.47,217.46,127.62251]
[1734498183357,21.68171157,217.47,217.46,127.62251]
[1734498184051,44.70764227,217.47,217.46,127.62251]
[1734498184449,44.70764227,217.47,217.46,119.93360105]
[1734498184852,70.03960376,217.47,217.32,1.4452]
[1734498185053,5.72118601,217.38,217.32,1.4452]
[1734498185555,5.72118601,217.36,217.31,4.0252]
[1734498186455,8.02148601,217.36,217.31,4.0252]
[1734498186853,5.72118601,217.36,217.31,4.0252]
[1734498187459,2.3005,217.33,217.31,4.0252]
[1734498188161,2.3005,217.33,217.31,2.52]
[1734498189257,8.95009552,217.38,217.28,1.4452]
[1734498189451,2.3006,217.32,217.28,1.4452]
[1734498190554,8.95009552,217.38,217.28,1.4452]
[1734498190762,2.3002,217.36,217.28,1.4452]
[1734498190961,2.3002,217.36,217.28,3.0098]
[1734498191164,11.47009552,217.41,217.28,3.0098]
[1734498192462,11.47009552,217.41,217.28,5.3108]
[1734498193258,2.3002,217.36,217.28,5.3108]
[1734498193756,2.3003,217.35,217.28,3.0098]
[1734498194058,11.47009552,217.41,217.28,3.0098]
[1734498194761,11.47009552,217.41,217.28,11.95989552]
[1734498195059,2.3003,217.35,217.28,14.26089552]
[1734498196262,8.95009552,217.41,217.28,11.95989552]
[1734498197165,5.54908186,217.47,217.31,8.95009552]
[1734498197468,14.49917738,217.47,217.32,2.52]
[1734498197868,2.2998,217.4,217.34,2.3003]
[1734498198063,8.95009552,217.44,217.32,2.52]
[1734498198568,2.3,217.38,217.32,2.52]
[1734498200168,2.2996,217.42,217.32,2.52]
[1734498200367,2.2996,217.42,217.34,8.95009552]
[1734498200569,2.2996,217.42,217.35,1.4795]
[1734498200759,2.2994,217.44,217.38,2.3]
[1734498200959,2.2994,217.44,217.38,4.82]
[1734498201966,14.49917738,217.47,217.38,2.52]
[1734498201967,2.2994,217.43,217.38,2.52]
[1734498202165,14.49917738,217.47,217.38,2.52]
[1734498202461,2.2997,217.41,217.38,2.52]
[1734498203463,2.2995,217.43,217.35,1.4795]
[1734498203666,8.95009552,217.44,217.35,1.4795]
[1734498204065,2.3,217.39,217.34,2.52]
[1734498204271,8.95009552,217.44,217.34,2.52]
[1734498204567,2.2996,217.41,217.34,2.52]
[1734498204771,8.95009552,217.44,217.34,2.52]
[1734498205161,14.49917738,217.47,217.34,2.52]
[1734498205359,8.95009552,217.44,217.34,2.52]
[1734498207173,2.2996,217.41,217.34,4.8204]
[1734498207373,8.95009552,217.44,217.34,2.52]
[1734498207576,2.3,217.38,217.34,2.52]
[1734498207775,8.95009552,217.44,217.34,2.52]
[1734498208478,22.57398998,217.44,217.34,2.52]
[1734498208673,16.14389446,217.43,217.34,2.52]
[1734498208871,9.4720466,217.43,217.34,2.52]
[1734498209174,2.2997,217.41,217.34,2.52]
[1734498209477,8.95009552,217.41,217.29,1.5726]
[1734498209667,8.95009552,217.41,217.3,2.52]
[1734498209668,2.3,217.38,217.3,2.52]
[1734498209866,8.95009552,217.41,217.29,1.5726]
[1734498210173,5.72746698,217.36,217.29,1.5726]